bitfinex/quotes_SOLUSD_20220113
["timestamp","ask_amount","ask_price","bid_price","bid_amount"]
[1642040659620,34.0972,150.03,149.96,24.9235]
[1642040660018,34.0972,150.03,149.96,25.1735]
[1642040660218,34.0972,150.03,149.97,6.0]
[1642040660421,34.0972,150.03,149.97,8.666]
[1642040660618,34.0972,150.03,149.97,8.916]
[1642040660918,34.0972,150.03,149.97,18.9155]
[1642040661319,9.5,150.03,149.97,18.9155]
[1642040668027,9.5,150.03,149.97,8.916]
[1642040669032,9.5,150.03,149.97,18.9155]
[1642040676258,9.5,150.03,149.98,0.26]
[1642040676460,9.5,150.03,149.98,10.2584]
[1642040676659,9.5,150.03,149.98,10.5084]
[1642040676861,9.5,150.03,149.99,6.0]
[1642040677262,9.5,150.03,149.99,6.25]
[1642040677860,9.5,150.03,149.99,0.25]
[1642040678269,9.5,150.03,149.98,10.2484]
[1642040680573,9.5,150.03,149.99,6.0]
[1642040680773,9.5,150.03,149.99,6.25]
[1642040681175,9.5,150.03,150.0,31.43572079]
[1642040681379,4.56149653,150.08,150.01,3.31588975]
[1642040681576,1.89549653,150.08,150.02,2.665]
[1642040681778,1.89549653,150.08,150.02,2.925]
[1642040681976,1.89549653,150.08,150.03,6.0]
[1642040682181,1.89549653,150.08,150.03,6.25]
[1642040682877,9.5,150.09,150.03,16.2454]
[1642040683277,0.26,150.08,150.03,16.2454]
[1642040683780,0.26,150.08,150.03,10.2454]
[1642040684782,0.26,150.08,150.03,0.25]
[1642040684982,0.26,150.08,150.02,0.26]
[1642040685279,0.26,150.08,150.02,6.26]
[1642040685479,0.26,150.08,150.01,36.0179]
[1642040685979,6.26,150.08,150.01,25.7715]
[1642040686181,9.175,150.08,150.01,0.25]
[1642040686380,34.28287668,150.08,149.99,9.9978]
[1642040686681,34.28287668,150.08,149.99,0.25]
[1642040686981,34.28287668,150.08,149.99,6.25]
[1642040687181,9.5,150.07,149.98,25.9209]
[1642040687381,2.926,150.06,149.97,1.90147957]
[1642040687582,9.5,150.05,149.97,1.90147957]
[1642040687782,2.666,150.04,149.97,1.90147957]
[1642040687982,9.5,150.03,149.96,1.90147957]
[1642040688182,9.75,150.03,149.96,1.90147957]
[1642040688381,6.26,150.02,149.96,1.90147957]
[1642040688584,6.26,150.02,149.96,2.15147957]
[1642040688984,6.26,150.02,149.96,0.25]
[1642040689183,6.26,150.02,149.95,24.6231]
[1642040690386,6.26,150.02,149.96,2.666]
[1642040690790,6.26,150.02,149.96,2.916]
[1642040694190,6.26,150.02,149.96,0.25]
[1642040694691,6.26,150.02,149.95,24.6231]
[1642040694892,6.26,150.02,149.95,27.2891]
[1642040695993,9.5,150.01,149.95,2.666]
[1642040696196,12.416,150.01,149.94,1.90147957]
[1642040696393,0.26,150.0,149.94,1.90147957]
[1642040696593,6.26,150.0,149.94,1.90147957]
[1642040696895,0.26,150.0,149.94,1.90147957]
[1642040697096,0.26,150.0,149.94,2.666]
[1642040697299,0.26,150.0,149.94,2.916]
[1642040697695,0.26,150.0,149.94,27.8877]
[1642040699497,0.26,150.0,149.94,25.2217]
[1642040701400,19.7529,150.01,149.94,25.2217]
[1642040701602,9.5,150.01,149.94,25.2217]
[1642040701803,9.5,150.01,149.95,8.666]
[1642040702203,9.5,150.01,149.95,8.916]
[1642040702901,9.5,150.01,149.95,18.9165]
[1642040703504,0.26,150.0,149.95,18.9165]
[1642040704003,9.5,150.03,149.96,34.436]
[1642040704224,9.75,150.03,149.96,34.686]
[1642040705526,0.26,150.02,149.96,34.686]
[1642040710029,0.26,150.02,149.96,37.352]
[1642040711232,9.76,150.02,149.96,37.352]
[1642040711433,9.5,150.02,149.96,37.352]
[1642040712831,0.26,150.01,149.96,37.352]
[1642040716239,0.26,150.01,149.96,27.3522]
[1642040716438,0.26,150.01,149.96,2.916]
[1642040716638,6.26,150.01,149.96,0.25]
[1642040717041,15.76,150.01,149.95,2.15147957]
[1642040717841,25.7626,150.01,149.95,2.15147957]
[1642040718041,25.7626,150.01,149.95,0.25]
[1642040718241,25.7626,150.01,149.93,4.81747957]
[1642040719248,26.0126,150.01,149.93,4.56747957]
[1642040719445,2.666,150.0,149.93,4.56747957]
[1642040719646,10.0042,149.99,149.93,4.56747957]
[1642040719844,16.2642,149.99,149.93,4.56747957]
[1642040720043,16.5142,149.99,149.93,4.56747957]
[1642040720644,16.5142,149.99,149.93,2.916]
[1642040720846,16.5142,149.99,149.92,24.139]
[1642040722148,26.0142,149.99,149.92,24.389]
[1642040723347,26.0142,149.99,149.92,24.139]
[1642040723547,26.0142,149.99,149.92,24.389]
[1642040725549,16.01,149.99,149.92,24.389]
[1642040727949,26.0142,149.99,149.92,24.389]
[1642040728155,26.0142,149.99,149.92,0.25]
[1642040728350,26.0142,149.99,149.91,2.666]
[1642040728551,26.0142,149.99,149.9,1.90147957]
[1642040728750,2.666,149.98,149.9,1.90147957]
[1642040728950,0.26,149.97,149.9,1.90147957]
[1642040729150,6.26,149.97,149.89,1.90147957]
[1642040729551,6.51,149.97,149.89,1.90147957]
[1642040729753,6.51,149.97,149.89,2.15147957]
[1642040729951,29.5671,149.97,149.89,2.15147957]
[1642040730255,29.3171,149.97,149.89,2.15147957]
[1642040730452,29.3171,149.97,149.89,0.25]
[1642040730751,29.3171,149.97,149.88,28.99317957]
[1642040730954,29.3171,149.97,149.89,10.2648]
[1642040731150,29.3171,149.97,149.9,2.666]
[1642040731351,0.26,149.96,149.9,2.666]
[1642040731550,0.26,149.96,149.9,2.916]
[1642040732853,0.26,149.96,149.9,12.9198]
[1642040735859,0.26,149.96,149.9,2.916]
[1642040736157,6.26,149.96,149.9,2.916]
[1642040736857,0.26,149.96,149.9,0.25]
[1642040737260,0.26,149.96,149.89,2.916]
[1642040737985,6.26,149.96,149.89,2.916]
[1642040741666,6.26,149.96,149.89,0.25]
[1642040741865,6.26,149.96,149.88,37.0988]
[1642040742569,6.0,149.96,149.88,37.0988]
[1642040742766,26.2331,149.97,149.88,37.0988]
[1642040742967,23.3171,149.97,149.88,37.0988]
[1642040743167,9.5,149.98,149.88,103.9188]
[1642040743367,9.5,149.98,149.89,0.26]
[1642040743567,9.5,149.98,149.92,10.0027]
[1642040743768,9.5,149.98,149.93,23.25029582]
[1642040744269,9.5,149.98,149.93,23.50029582]
[1642040744469,0.26,149.97,149.93,23.50029582]
[1642040745796,0.26,149.97,149.93,33.50249582]
[1642040746998,9.5,149.98,149.93,33.50249582]
[1642040747399,2.668,150.0,149.93,33.50249582]
[1642040747601,10.56005841,150.01,149.94,2.666]
[1642040747801,10.56005841,150.01,149.93,33.50249582]
[1642040748001,6.0,150.0,149.93,33.50249582]
[1642040748199,10.56005841,150.01,149.93,33.50249582]
[1642040748499,0.26,150.0,149.94,2.666]
[1642040748700,0.26,150.0,149.94,34.4057]
[1642040749699,13.47605841,150.01,149.94,34.4057]
[1642040749998,13.22605841,150.01,149.94,34.1557]
[1642040750203,13.47605841,150.01,149.94,24.1541]
[1642040750401,6.0,150.0,149.93,2.666]
[1642040750598,2.666,149.99,149.93,2.916]
[1642040750798,2.916,149.99,149.93,2.666]
[1642040751000,6.26,149.98,149.93,2.666]
[1642040751998,2.666,149.99,149.93,2.666]
[1642040752205,9.5,150.0,149.93,2.916]
[1642040752402,0.26,149.99,149.93,2.666]
[1642040752601,6.26,149.99,149.93,2.916]
[1642040753014,6.51,149.99,149.93,2.666]
[1642040753219,6.51,149.99,149.93,2.916]
[1642040753820,6.51,149.99,149.93,0.25]
[1642040754220,6.26,149.99,149.92,23.1775]
[1642040754428,15.76,149.99,149.92,23.1775]
[1642040755329,15.76,149.99,149.92,33.1805]
[1642040756328,15.76,149.99,149.92,23.1775]
[1642040756744,25.764,149.99,149.92,23.1775]
[1642040757152,26.014,149.99,149.92,0.25]
[1642040757352,26.014,149.99,149.91,78.148]
[1642040757752,10.0055,149.97,149.91,75.482]
[1642040757955,0.26,149.96,149.91,75.482]
[1642040758155,6.26,149.96,149.91,75.482]
[1642040758753,0.26,149.96,149.91,75.482]
[1642040760163,0.26,149.96,149.91,75.732]
[1642040760963,0.26,149.97,149.91,75.732]
[1642040761163,0.26,149.97,149.92,2.666]
[1642040761566,0.26,149.97,149.92,25.3646]
[1642040761865,0.26,149.97,149.92,25.6146]
[1642040762264,24.1996,149.98,149.92,25.6146]
[1642040762465,9.5,149.99,149.92,25.6146]
[1642040762665,9.75,149.99,149.92,25.6146]
[1642040762866,6.0,149.98,149.92,25.6146]
[1642040763468,19.7541,149.99,149.92,25.6146]
[1642040763666,6.0,149.98,149.92,22.9486]
[1642040763866,6.26,149.98,149.92,22.9486]
[1642040764066,6.0,149.97,149.92,22.9486]
[1642040764470,0.26,149.96,149.92,22.6986]
[1642040764669,0.26,149.96,149.91,2.666]
[1642040765672,2.666,149.95,149.91,2.666]
[1642040765869,9.5,149.96,149.91,2.666]
[1642040766070,0.26,149.94,149.91,2.666]
[1642040766670,2.74851018,149.93,149.91,2.666]
[1642040767070,0.26,149.92,149.91,2.666]
[1642040767270,0.26,149.92,149.88,25.8244]
[1642040769097,10.2674,149.94,149.88,23.4064]
[1642040769797,6.0,149.93,149.88,23.4064]
[1642040770000,0.26,149.92,149.88,23.4064]
[1642040771000,6.26,149.92,149.88,23.4064]
[1642040771199,6.26,149.93,149.88,23.1564]
[1642040771399,6.26,149.93,149.88,23.4064]
[1642040772700,0.26,149.93,149.88,23.4064]
[1642040773103,6.26,149.94,149.88,23.4064]
[1642040773602,6.0,149.94,149.88,23.4064]
[1642040774102,34.3132,149.95,149.88,23.4064]
[1642040774803,44.32,149.95,149.88,23.4064]
[1642040775405,0.26,149.94,149.88,23.4064]
[1642040776409,0.26,149.94,149.88,23.1564]
[1642040776607,16.2676,149.94,149.88,23.1564]
[1642040776808,18.9356,149.94,149.87,72.4866]
[1642040777009,19.1856,149.94,149.87,72.7366]
[1642040778010,16.5176,149.94,149.87,72.7366]
[1642040779109,6.51,149.94,149.87,72.7366]
[1642040779513,6.25,149.94,149.87,72.7366]
[1642040779711,6.0,149.94,149.87,72.7366]
[1642040779913,12.168,149.97,149.88,0.26]
[1642040780113,9.5,149.97,149.92,10.0029]
[1642040780412,1.89549653,149.99,149.93,30.41343307]
[1642040780812,11.39549653,150.0,149.93,30.66343307]
[1642040781220,21.39919653,150.0,149.93,30.66343307]
[1642040781413,6.0,149.99,149.93,30.66343307]
[1642040781913,0.26,149.98,149.93,30.66343307]
[1642040782114,0.26,149.99,149.93,30.66343307]
[1642040782312,6.26,149.99,149.93,30.66343307]
[1642040782714,6.51,149.99,149.93,30.66343307]
[1642040784821,6.51,149.99,149.93,0.25]
[1642040785020,6.51,149.99,149.92,2.666]
[1642040785021,16.5144,149.99,149.92,27.0903]
[1642040786624,26.0144,149.99,149.92,27.0903]
[1642040786822,26.0144,149.99,149.92,24.4243]
[1642040788123,26.0144,149.99,149.9,12.6701]
[1642040788324,26.0144,149.99,149.9,2.666]
[1642040788525,2.666,149.98,149.9,2.666]
[1642040788724,19.5056,149.97,149.9,2.666]
[1642040789025,25.7656,149.97,149.9,2.666]
[1642040789228,26.0156,149.97,149.9,2.666]
[1642040789425,26.0156,149.97,149.9,25.7982]
[1642040791226,26.0156,149.97,149.9,26.0482]
[1642040792325,26.0156,149.97,149.9,23.3822]
[1642040793137,6.0,149.96,149.9,23.3822]
[1642040793327,16.0067,149.96,149.9,23.3822]
[1642040793529,0.26,149.95,149.9,23.3822]
[1642040794259,0.26,149.95,149.9,23.1322]
[1642040794430,0.26,149.95,149.9,23.3822]
[1642040795329,0.26,149.95,149.9,0.25]
[1642040795829,10.2669,149.95,149.88,30.39577571]
[1642040796028,6.0,149.94,149.88,30.39577571]
[1642040796229,6.25,149.94,149.88,30.39577571]
[1642040796430,0.26,149.93,149.88,30.39577571]
[1642040796833,0.26,149.93,149.88,53.24637571]
[1642040797435,6.26,149.93,149.88,2.666]
[1642040797635,10.01,149.93,149.87,72.4866]
[1642040797835,6.0,149.92,149.87,1.90147957]
[1642040798136,0.26,149.91,149.87,1.90147957]
[1642040798536,10.2696,149.91,149.87,1.90147957]
[1642040798935,6.0,149.9,149.84,26.7836]
[1642040799135,6.0,149.9,149.84,27.0336]
[1642040799338,0.25,149.92,149.85,0.26]
[1642040799535,0.25,149.92,149.86,2.668]
[1642040799735,9.75,149.93,149.86,2.918]
[1642040800733,0.26,149.92,149.86,2.918]
[1642040800935,0.26,149.92,149.86,0.25]
[1642040801135,0.26,149.92,149.85,12.9256]
[1642040801336,0.26,149.92,149.86,24.0454]
[1642040801759,0.26,149.92,149.86,24.2954]
[1642040802759,9.5,149.93,149.86,24.2954]
[1642040802960,9.5,149.93,149.87,2.668]
[1642040803161,9.5,149.97,149.87,4.65037447]
[1642040803362,9.5,149.97,149.89,27.07257404]
[1642040803561,9.5,149.97,149.9,2.666]
[1642040803761,9.5,149.97,149.9,2.916]
[1642040804361,0.26,149.96,149.9,2.916]
[1642040804966,0.26,149.96,149.9,12.9203]
[1642040806768,0.26,149.96,149.9,2.916]
[1642040807169,6.26,149.96,149.9,2.916]
[1642040807667,6.51,149.96,149.9,2.666]
[1642040807868,9.176,149.96,149.88,27.596]
[1642040808068,19.1824,149.96,149.88,27.596]
[1642040808267,28.6824,149.96,149.88,27.596]
[1642040808469,26.0164,149.96,149.88,27.596]
[1642040808670,26.0164,149.96,149.88,27.846]
[1642040808870,26.0164,149.96,149.88,25.18]
[1642040811274,10.0083,149.93,149.88,25.18]
[1642040811472,0.26,149.92,149.88,25.18]
[1642040811673,6.26,149.92,149.88,25.18]
[1642040812274,6.26,149.92,149.88,0.25]
[1642040812472,6.26,149.92,149.86,49.33329284]
[1642040813774,6.26,149.92,149.86,46.66529284]
[1642040814881,2.668,149.95,149.86,46.66529284]
[1642040815079,9.5,149.96,149.87,67.08]
[1642040815278,9.5,149.96,149.87,89.9111]
[1642040815978,9.5,149.96,149.87,91.81257957]
[1642040816178,9.5,149.96,149.88,2.668]
[1642040816578,9.5,149.96,149.89,0.26]
[1642040816778,9.5,149.96,149.9,2.668]
[1642040817181,9.5,149.96,149.9,2.918]
[1642040817782,0.26,149.95,149.9,2.918]
[1642040821088,9.5,149.96,149.9,12.9222]
[1642040821289,9.5,149.96,149.91,0.26]
[1642040826194,9.5,149.96,149.92,29.14245688]
[1642040826693,9.5,149.96,149.92,29.39245688]
[1642040827095,9.5,149.96,149.92,39.39545688]
[1642040827497,9.5,149.96,149.93,2.666]
[1642040827796,9.5,149.96,149.94,3.31588975]
[1642040828221,9.5,149.96,149.94,3.56588975]
[1642040829918,9.5,149.99,149.94,3.56588975]
[1642040830320,0.26,149.98,149.94,3.56588975]
[1642040840629,9.76,149.98,149.94,3.56588975]
[1642040840830,9.5,149.98,149.94,0.25]
[1642040841034,0.26,149.97,149.94,0.25]
[1642040841232,0.26,149.97,149.93,23.2883]
[1642040841431,2.74851018,149.96,149.93,23.2883]
[1642040841732,2.74851018,149.96,149.94,3.31588975]
[1642040842131,2.74851018,149.96,149.94,3.56588975]
[1642040843637,0.26,149.97,149.94,3.56588975]
[1642040844334,2.74851018,149.96,149.94,3.56588975]
[1642040846541,2.74851018,149.96,149.94,0.25]
[1642040846767,2.74851018,149.96,149.92,25.687]
[1642040846940,0.26,149.95,149.92,25.687]
[1642040847538,0.26,149.95,149.93,3.31588975]
[1642040847739,0.26,149.95,149.93,3.56588975]
[1642040851941,0.26,149.97,149.93,3.56588975]
[1642040852140,6.26,149.97,149.93,3.56588975]
[1642040852339,6.26,149.97,149.93,0.25]
[1642040852542,6.26,149.97,149.92,23.021]
[1642040855242,0.51,149.97,149.91,2.666]
[1642040855443,15.5,149.96,149.89,1.90147957]
[1642040855645,9.75,149.96,149.89,1.90147957]
[1642040855844,6.26,149.95,149.89,1.90147957]
[1642040856043,9.5,149.94,149.88,4.56747957]
[1642040856446,0.26,149.93,149.88,31.03150586]
[1642040856648,9.5,149.94,149.88,31.28150586]
[1642040856847,9.5,149.94,149.88,29.38002629]
[1642040857948,9.5,149.94,149.88,39.38562629]
[1642040859350,9.5,149.94,149.89,16.0049]
[1642040859551,9.5,149.94,149.9,2.668]
[1642040859750,9.5,149.94,149.9,2.918]
[1642040860753,9.5,149.94,149.9,12.9222]
[1642040861554,9.5,149.98,149.91,6.0]
[1642040861779,14.06349653,150.0,149.92,24.1442]
[1642040861981,11.39549653,150.0,149.93,6.0]
[1642040862180,11.39549653,150.0,149.94,31.56795354]
[1642040862581,11.39549653,150.0,149.94,31.81795354]
[1642040862781,9.75,150.0,149.94,31.81795354]
[1642040863481,9.75,150.0,149.94,0.25]
[1642040863682,9.75,150.0,149.93,2.916]
[1642040863882,9.75,150.0,149.93,0.25]
[1642040864083,9.75,150.0,149.92,36.8126]
[1642040864084,0.26,149.99,149.92,37.0626]
[1642040865888,0.26,149.99,149.92,27.0602]
[1642040866091,9.5,149.98,149.92,27.0602]
[1642040866490,6.26,149.97,149.92,27.0602]
[1642040867093,6.26,149.97,149.92,57.2363567]
[1642040867290,9.5,149.98,149.92,57.2363567]
[1642040867491,0.26,149.97,149.92,57.2363567]
[1642040868092,9.5,149.98,149.92,57.2363567]
[1642040871395,0.26,149.97,149.92,57.2363567]
[1642040876696,0.26,149.97,149.92,27.0602]
[1642040876896,6.26,149.97,149.92,27.0602]
[1642040877097,6.26,149.97,149.92,26.8102]
[1642040877297,15.76,149.97,149.92,26.8102]
[1642040877499,9.76,149.97,149.92,26.8102]
[1642040878197,9.76,149.97,149.92,24.1442]
[1642040878396,9.76,149.97,149.92,24.3942]
[1642040880305,9.76,149.97,149.9,2.666]
[1642040880600,9.76,149.97,149.9,36.1195]
[1642040894840,9.76,149.97,149.9,38.02097957]
[1642040896244,9.5,149.97,149.9,104.84097957]
[1642040896442,9.5,149.97,149.91,0.26]
[1642040896644,9.5,149.97,149.91,10.2633]
[1642040896842,9.5,149.97,149.91,10.5133]
[1642040898848,26.9941,149.99,149.91,10.5133]
[1642040898849,24.3281,149.99,149.91,10.5133]
[1642040899045,24.3281,149.99,149.93,10.0019]
[1642040899246,24.3281,149.99,149.93,10.2519]
[1642040900247,0.26,149.98,149.93,0.25]
[1642040900647,0.26,149.98,149.92,29.45107957]
[1642040901947,0.26,149.98,149.92,39.45387957]
[1642040902548,0.26,149.98,149.92,37.5524]
[1642040906149,0.26,149.98,149.92,27.5496]
[1642040906351,6.26,149.98,149.92,27.5496]
[1642040909153,6.26,149.98,149.92,24.8836]
[1642040910154,6.26,149.98,149.92,24.6336]
[1642040911557,12.166,149.97,149.91,2.666]
[1642040911757,12.416,149.97,149.9,1.90147957]
[1642040911958,6.26,149.96,149.9,1.40147957]
[1642040912164,12.166,149.95,149.9,1.40147957]
[1642040912556,16.2681,149.94,149.9,1.40147957]
[1642040912756,16.5181,149.94,149.9,1.40147957]
[1642040912959,16.5181,149.94,149.84,64.11295597]
[1642040913159,23.1566,149.93,149.84,64.36295597]
[1642040913557,6.26,149.92,149.84,64.36295597]
[1642040913760,13.083,149.92,149.85,0.26]
[1642040914360,12.823,149.92,149.85,10.2677]
[1642040914562,12.823,149.92,149.85,10.5177]
[1642040915161,6.0,149.92,149.85,10.5177]
[1642040915363,6.0,149.92,149.86,2.668]
[1642040915564,6.0,149.92,149.86,26.4362]
[1642040915765,6.0,149.92,149.87,0.26]
[1642040923198,2.668,149.91,149.86,2.668]
[1642040923397,18.428,149.91,149.86,2.668]
[1642040923595,6.0,149.9,149.86,2.668]
[1642040923801,6.0,149.9,149.82,97.00295915]
[1642040924002,0.26,149.89,149.82,97.00295915]
[1642040924203,0.26,149.89,149.82,123.38043302]
[1642040924500,0.26,149.89,149.82,123.63043302]
[1642040924701,10.0106,149.88,149.82,123.63043302]
[1642040924901,10.0106,149.88,149.82,149.98473302]
[1642040925107,0.26,149.89,149.82,56.53473302]
[1642040926310,0.26,149.89,149.82,53.86573302]
[1642040926505,0.26,149.89,149.82,54.11573302]
[1642040926805,10.2701,149.89,149.82,54.11573302]
[1642040927406,6.0,149.88,149.82,54.11573302]
[1642040927805,0.26,149.87,149.82,54.11573302]
[1642040929610,6.26,149.88,149.82,56.64544735]
[1642040930009,6.26,149.88,149.82,66.65514735]
[1642040930211,10.2708,149.88,149.82,30.04114735]
[1642040930510,6.0,149.87,149.81,2.169]
[1642040930712,6.0,149.87,149.82,6.0]
[1642040930910,6.0,149.87,149.8,31.7019]
[1642040931110,6.0,149.87,149.81,0.26]
[1642040931710,0.26,149.88,149.81,10.2703]
[1642040931911,0.25,149.88,149.81,10.2703]
[1642040932113,0.25,149.88,149.81,10.5203]
[1642040932311,6.26,149.89,149.81,10.5203]
[1642040932513,6.51,149.89,149.82,23.0431]
[1642040932717,6.51,149.89,149.82,23.2931]
[1642040933114,16.5201,149.89,149.82,23.2931]
[1642040933714,9.5,149.88,149.82,25.9621]
[1642040933915,0.26,149.87,149.82,2.919]
[1642040934116,16.2717,149.87,149.82,0.25]
[1642040934329,16.2717,149.87,149.8,2.669]
[1642040934621,12.169,149.86,149.79,93.2]
[1642040934822,12.169,149.86,149.79,93.45]
[1642040935021,6.26,149.85,149.79,93.45]
[1642040935224,6.51,149.85,149.79,93.45]
[1642040935922,10.0139,149.84,149.79,93.45]
[1642040936123,6.0,149.83,149.79,93.45]
[1642040936324,6.26,149.83,149.79,93.2]
[1642040936525,0.26,149.82,149.76,2.669]
[1642040936725,6.26,149.82,149.75,77.0402]
[1642040936929,0.26,149.82,149.75,77.0402]
[1642040937127,0.51,149.82,149.76,24.2391]
[1642040937325,0.25,149.82,149.76,24.2391]
[1642040937831,0.25,149.82,149.76,24.4891]
[1642040937832,10.2647,149.82,149.76,24.4891]
[1642040938125,6.26,149.81,149.76,24.4891]
[1642040938326,6.26,149.81,149.76,24.2391]
[1642040938527,6.51,149.81,149.76,24.2391]
[1642040938927,6.25,149.81,149.76,24.2391]
[1642040939126,0.25,149.81,149.76,24.2391]
[1642040939729,0.26,149.82,149.76,24.4891]
[1642040940227,0.26,149.82,149.76,55.03033826]
[1642040940646,12.42,149.84,149.77,67.08]
[1642040940845,9.75,149.84,149.77,69.75]
[1642040941045,9.75,149.84,149.77,70.0]
[1642040941246,0.25,149.84,149.77,70.0]
[1642040941445,9.5,149.87,149.79,26.72858896]
[1642040941646,100.5135,149.89,149.8,2.669]
[1642040941647,2.67,149.86,149.8,2.669]
[1642040941847,100.5135,149.89,149.8,26.3314]
[1642040942046,0.26,149.88,149.8,26.5814]
[1642040943648,10.2708,149.88,149.8,26.0714]
[1642040943847,16.2708,149.88,149.8,26.0714]
[1642040944050,16.2708,149.88,149.8,26.3214]
[1642040944647,16.5208,149.88,149.8,26.3214]
[1642040944946,16.5208,149.88,149.8,36.3324]
[1642040946146,16.2708,149.88,149.8,36.3324]
[1642040946447,0.26,149.88,149.82,28.6291308]
[1642040946647,0.26,149.88,149.83,2.669]
[1642040947448,0.51,149.89,149.83,2.669]
[1642040947648,6.26,149.89,149.83,2.669]
[1642040947848,16.27,149.89,149.83,2.669]
[1642040948549,25.77,149.89,149.83,2.669]
[1642040948749,25.77,149.89,149.82,31.2981308]
[1642040949148,26.02,149.89,149.82,31.2981308]
[1642040949855,26.02,149.89,149.82,31.5481308]
[1642040950051,26.02,149.89,149.82,31.2981308]
[1642040950853,26.02,149.89,149.82,28.6291308]
[1642040951255,26.02,149.89,149.81,2.669]
[1642040951554,2.669,149.88,149.81,0.25]
[1642040951755,10.0115,149.87,149.81,0.25]
[1642040951954,16.0115,149.87,149.81,0.25]
[1642040952155,0.26,149.86,149.81,0.25]
[1642040952557,0.26,149.86,149.8,96.6279]
[1642040952558,0.26,149.86,149.8,96.8779]
[1642040952757,0.25,149.87,149.8,96.8779]
[1642040953157,6.0,149.87,149.8,96.8779]
[1642040953662,0.26,149.86,149.8,0.25]
[1642040953860,10.2721,149.86,149.8,0.25]
[1642040954060,10.2721,149.86,149.79,31.24405704]
[1642040955062,10.2721,149.86,149.79,55.25515704]
[1642040955564,10.2721,149.86,149.79,26.6801]
[1642040955968,10.0135,149.84,149.79,26.6801]
[1642040956163,10.0135,149.84,149.79,2.669]
[1642040956364,0.26,149.83,149.79,2.669]
[1642040956564,0.26,149.83,149.78,93.2]
[1642040956765,6.26,149.83,149.78,93.2]
[1642040956966,0.26,149.82,149.78,93.2]
[1642040957166,10.0148,149.82,149.78,93.2]
[1642040957365,0.51,149.84,149.78,93.45]
[1642040957567,0.51,149.84,149.78,119.71394156]
[1642040957767,40.1706,149.85,149.78,119.71394156]
[1642040957964,34.1706,149.85,149.78,119.71394156]
[1642040958367,44.1832,149.85,149.78,129.72614156]
[1642040958567,9.5,149.85,149.78,119.71394156]
[1642040958766,9.5,149.89,149.79,69.749]
[1642040958965,9.5,149.89,149.8,24.1155]
[1642040959165,9.5,149.89,149.81,29.32186189]
[1642040959368,9.5,149.89,149.82,22.9139]
[1642040959765,9.5,149.89,149.82,23.1639]
[1642040959965,10.0116,149.87,149.81,29.32186189]
[1642040960166,10.0116,149.87,149.81,26.65286189]
[1642040960765,0.26,149.86,149.81,26.65286189]
[1642040960969,0.26,149.88,149.81,26.65286189]